bitfinex/quotes_SOLUSD_20260109
["timestamp","ask_amount","ask_price","bid_price","bid_amount"]
[1767972118563,0.72252196,137.92,137.86,0.68301738]
[1767972118771,7.97317494,137.92,137.89,7.24915206]
[1767972118961,7.97317494,137.92,137.86,0.68301738]
[1767972119160,0.72252196,137.91,137.88,7.24915206]
[1767972119544,7.97373133,137.91,137.86,0.68301738]
[1767972119769,0.72252196,137.91,137.88,7.24915206]
[1767972120152,0.72252196,137.91,137.86,0.68301738]
[1767972120457,7.97364765,137.91,137.88,7.24915206]
[1767972120968,7.97364765,137.91,137.83,0.68301738]
[1767972120969,0.72252196,137.89,137.83,0.68301738]
[1767972121150,0.72252196,137.89,137.85,7.24915206]
[1767972121349,13.26,137.9,137.88,7.24915206]
[1767972121545,7.25065828,137.92,137.89,7.24915206]
[1767972121757,7.25065828,137.92,137.82,19.14860701]
[1767972121758,14.08252196,137.93,137.9,7.24915206]
[1767972121972,0.72252196,137.92,137.89,7.24915206]
[1767972122268,0.72252196,137.92,137.9,7.24915206]
[1767972122442,13.36,137.93,137.91,7.24915206]
[1767972122648,0.1,137.93,137.92,7.24915206]
[1767972122844,0.69753135,137.96,137.91,0.70514384]
[1767972123148,0.69753135,137.95,137.92,7.24915206]
[1767972123363,0.69753135,137.95,137.89,0.70514384]
[1767972123673,0.69753135,137.93,137.89,7.9542959]
[1767972123879,0.69753135,137.93,137.89,0.70514384]
[1767972124175,0.69753135,137.93,137.91,7.24915206]
[1767972124379,0.69753135,137.93,137.9,7.24915206]
[1767972124947,0.69753135,137.93,137.89,0.70514384]
[1767972124948,0.69753135,137.95,137.92,7.24915206]
[1767972125177,13.93753135,137.95,137.89,0.70514384]
[1767972125379,13.93753135,137.95,137.92,7.24915206]
[1767972125753,13.93753135,137.95,137.93,7.24915206]
[1767972125754,13.24,137.95,137.93,7.24915206]
[1767972125950,7.24744209,137.98,137.94,7.24915206]
[1767972126173,27.73659415,137.98,137.94,7.24915206]
[1767972126481,20.48744209,137.98,137.93,0.70514384]
[1767972126894,7.24915206,137.97,137.93,7.9542959]
[1767972127101,7.94668341,137.97,137.92,0.70514384]
[1767972127287,0.69753135,137.97,137.92,7.9542959]
[1767972127599,21.18424481,138.0,137.96,7.24915206]
[1767972127800,0.69753135,137.99,137.96,7.24915206]
[1767972128001,0.69753135,137.99,137.94,0.70514384]
[1767972128385,0.69753135,137.99,137.96,7.24915206]
[1767972128780,27.73586552,138.0,137.96,7.24915206]
[1767972128981,14.49586552,138.0,137.96,7.24915206]
[1767972129199,13.24,137.99,137.96,7.24915206]
[1767972129415,0.69753135,138.03,137.97,7.9542959]
[1767972129703,13.24,138.02,137.99,7.24915206]
[1767972130003,13.24,138.02,137.97,0.70514384]
[1767972130004,0.69753135,138.03,138.0,7.24915206]
[1767972130190,13.93753135,138.03,137.98,0.70514384]
[1767972130519,13.61356676,138.04,138.01,7.24915206]
[1767972130696,13.61356676,138.04,138.02,7.24915206]
[1767972130898,14.31109811,138.04,138.0,7.24915206]
[1767972131093,13.61356676,138.04,138.03,7.24915206]
[1767972131387,12.32772202,138.04,138.02,0.70514384]
[1767972131802,0.69753135,138.1,138.03,7.24915206]
[1767972132000,0.69753135,138.1,138.01,0.28432314]
[1767972132300,7.94668341,138.1,138.05,7.24915206]
[1767972132516,0.69753135,138.1,138.06,7.24915206]
[1767972133015,7.94668341,138.1,138.0,7.24626704]
[1767972133183,0.69753135,138.09,138.0,7.5334752]
[1767972133516,0.69753135,138.08,137.97,13.24]
[1767972133809,0.69753135,138.07,138.03,7.24915206]
[1767972134378,13.24,138.08,138.04,7.24915206]
[1767972134697,13.24,138.1,138.06,7.24915206]
[1767972135003,21.18668341,138.09,138.04,7.24915206]
[1767972135309,7.94668341,138.08,138.03,7.24915206]
[1767972135802,7.94668341,138.08,137.97,1.00911838]
[1767972135803,0.69753135,138.06,137.97,1.00911838]
[1767972136004,0.69753135,138.06,138.02,7.24915206]
[1767972136193,0.69753135,138.05,138.02,7.24915206]
[1767972136406,0.69753135,138.05,137.97,7.97257906]
[1767972136700,0.69753135,138.04,138.01,7.24915206]
[1767972136904,0.69753135,138.04,138.0,7.24915206]
[1767972137399,0.69753135,138.06,138.02,7.24915206]
[1767972137603,0.69753135,138.06,138.01,7.24572557]
[1767972137982,0.69753135,138.06,138.03,7.24915206]
[1767972138708,13.24,138.07,138.05,7.24915206]
[1767972138889,7.24915206,138.1,138.06,7.24915206]
[1767972139207,21.18668341,138.1,138.06,7.24915206]
[1767972139506,13.93753135,138.1,138.03,7.24458216]
[1767972139714,7.24915206,138.09,138.04,7.24915206]
[1767972139896,21.18668341,138.1,138.05,7.24915206]
[1767972140084,0.69753135,138.12,138.07,7.24915206]
[1767972140277,0.69753135,138.12,138.01,1.00890831]
[1767972140278,7.24915206,138.11,138.06,7.24915206]
[1767972140498,7.24915206,138.1,138.05,7.24915206]
[1767972140688,7.94668341,138.11,138.06,7.24915206]
[1767972141284,0.69753135,138.11,138.03,18.83617196]
[1767972141483,0.69753135,138.13,138.08,7.24915206]
[1767972141679,7.24915206,138.12,138.08,7.24915206]
[1767972142304,7.94668341,138.12,138.05,0.72437522]
[1767972142510,0.69753135,138.11,138.06,7.24915206]
[1767972142705,7.24915206,138.1,138.05,7.97352728]
[1767972142891,0.69753135,138.11,138.05,15.21702969]
[1767972143096,0.69753135,138.16,138.1,7.24915206]
[1767972143301,7.24915206,138.15,138.1,7.24915206]
[1767972143502,0.79753135,138.18,138.13,7.24915206]
[1767972143693,8.04668341,138.18,138.13,7.24915206]
[1767972143888,0.1,138.18,138.13,7.2394554]
[1767972144103,0.1,138.18,138.15,7.24915206]
[1767972144297,0.1,138.18,138.17,7.24915206]
[1767972144497,13.91753135,138.22,138.14,7.23902125]
[1767972144498,13.22,138.22,138.14,7.23902125]
[1767972144792,25.59933861,138.24,138.19,11.68180726]
[1767972144993,12.96427117,138.25,138.23,11.68180726]
[1767972145197,1.13048695,138.32,138.24,11.68180726]
[1767972145502,1.13048695,138.32,138.21,0.28432314]
[1767972145503,0.4329556,138.32,138.29,11.68180726]
[1767972145695,0.4329556,138.32,138.27,3.7773581]
[1767972146013,0.4329556,138.32,138.3,11.68180726]
[1767972146315,0.4329556,138.32,138.31,11.68180726]
[1767972146611,0.69753135,138.41,138.31,11.68180726]
[1767972146911,0.69753135,138.41,138.3,7.23046415]
[1767972146912,0.69753135,138.41,138.3,37.27323952]
[1767972147211,0.69753135,138.42,138.31,0.28432314]
[1767972147420,0.69753135,138.41,138.37,11.68180726]
[1767972147619,0.69753135,138.45,138.35,13.50432314]
[1767972147914,12.74793118,138.46,138.37,25.29450025]
[1767972148130,12.74793118,138.46,138.45,11.68180726]
[1767972148297,12.74793118,138.46,138.39,0.28432314]
[1767972148492,13.44546253,138.46,138.37,7.22700007]
[1767972148715,0.69753135,138.44,138.34,7.22840186]
[1767972148918,0.69753135,138.44,138.35,0.28432314]
[1767972149115,0.69753135,138.44,138.32,0.14216157]
[1767972149415,0.69753135,138.4,138.32,11.68180726]
[1767972149614,0.69753135,138.4,138.28,13.22]
[1767972149921,11.68180726,138.33,138.28,11.68180726]
[1767972150112,0.69753135,138.33,138.27,3.7773581]
[1767972150303,0.69753135,138.31,138.27,3.7773581]
[1767972150503,0.69753135,138.3,138.27,3.7773581]
[1767972150813,0.69753135,138.3,138.22,13.22]
[1767972150814,0.69753135,138.29,138.24,11.68180726]
[1767972151016,12.37933861,138.27,138.21,11.68180726]
[1767972151210,0.69753135,138.3,138.21,11.68180726]
[1767972151402,0.69753135,138.28,138.19,0.72364136]
[1767972151606,11.68180726,138.23,138.15,7.96229903]
[1767972152115,0.69753135,138.24,138.17,11.68180726]
[1767972152316,0.69753135,138.24,138.15,7.96224511]
[1767972152317,12.37933861,138.24,138.19,11.68180726]
[1767972152617,0.69753135,138.23,138.15,7.96224511]
[1767972152807,0.69753135,138.23,138.19,11.68180726]
[1767972153009,0.69753135,138.23,138.15,7.96224511]
[1767972153010,12.37933861,138.23,138.15,7.96224511]
[1767972153322,12.37933861,138.23,138.18,11.68180726]
[1767972153522,0.69753135,138.23,138.18,11.68180726]
[1767972153712,12.37933861,138.23,138.18,11.68180726]
[1767972154014,12.37933861,138.23,138.17,11.68180726]
[1767972154015,11.68180726,138.23,138.17,11.68180726]
[1767972154217,7.23403616,138.24,138.18,11.68180726]
[1767972154524,0.72030572,138.25,138.18,0.14216157]
[1767972154721,0.72030572,138.25,138.19,11.68180726]
[1767972154722,12.40211298,138.25,138.19,11.68180726]
[1767972155016,11.68180726,138.24,138.19,11.68180726]
[1767972155216,11.68180726,138.24,138.18,11.9661304]
[1767972155515,11.68180726,138.3,138.18,11.9661304]
[1767972155516,0.72030572,138.27,138.18,0.28432314]
[1767972155714,11.68180726,138.26,138.2,11.68180726]
[1767972155910,11.68180726,138.23,138.18,11.68180726]
[1767972156111,11.68180726,138.24,138.18,11.68180726]
[1767972156316,11.68180726,138.24,138.19,11.68180726]
[1767972156536,11.68180726,138.24,138.17,7.96120011]
[1767972156701,0.72030572,138.27,138.18,0.28432314]
[1767972157017,11.68180726,138.25,138.2,11.68180726]
[1767972157219,11.68180726,138.23,138.17,7.2373303]
[1767972157526,11.68180726,138.23,138.17,18.91913756]
[1767972157927,11.68180726,138.23,138.16,7.38014564]
[1767972158232,11.68180726,138.24,138.17,7.96102056]
[1767972158745,11.68180726,138.23,138.18,11.68180726]
[1767972159106,13.92030572,138.26,138.2,11.68180726]
[1767972159428,13.92030572,138.26,138.19,0.72364136]
[1767972159429,0.72030572,138.24,138.19,0.72364136]
[1767972159730,11.68180726,138.23,138.18,11.68180726]
[1767972159927,11.68180726,138.23,138.16,8.24608716]
[1767972160121,0.72030572,138.24,138.18,11.68180726]
[1767972160319,0.72030572,138.22,138.17,7.23739671]
[1767972160523,0.72030572,138.3,138.21,11.68180726]
[1767972160705,0.72030572,138.24,138.21,11.68180726]
[1767972160911,0.72030572,138.24,138.2,11.68180726]
[1767972161215,0.72030572,138.24,138.18,7.96061027]
[1767972161216,12.40211298,138.24,138.18,7.96061027]
[1767972161421,15.0,138.4,138.23,0.72030572]
[1767972161614,7.2275224,138.36,138.28,11.68180726]
[1767972161917,32.38,138.48,138.32,11.68180726]
[1767972162129,11.68180726,138.38,138.33,11.68180726]
[1767972162311,13.2,138.39,138.32,11.68180726]
[1767972162312,11.78180726,138.37,138.32,11.68180726]
[1767972162505,0.1,138.37,138.32,7.22951555]
[1767972162706,0.1,138.37,138.33,11.68180726]
[1767972163028,11.78180726,138.37,138.29,0.72030572]
[1767972163228,11.68180726,138.36,138.31,11.68180726]
[1767972163410,0.72030572,138.35,138.31,11.68180726]
[1767972163930,0.72030572,138.35,138.29,0.72030572]
[1767972164221,0.72030572,138.35,138.32,11.68180726]
[1767972164445,0.72030572,138.34,138.3,11.68180726]
[1767972164602,0.72030572,138.32,138.28,11.68180726]
[1767972164802,0.72030572,138.31,138.27,11.68180726]
[1767972165034,0.72030572,138.31,138.28,11.68180726]
[1767972165244,0.72030572,138.3,138.24,7.95676619]
[1767972165419,13.92030572,138.32,138.29,11.68180726]
[1767972165619,0.72030572,138.32,138.31,11.68180726]
[1767972165844,0.72030572,138.32,138.26,0.72327498]
[1767972165845,13.92030572,138.32,138.3,11.65556377]
[1767972166024,13.92030572,138.32,138.31,11.68180726]
[1767972166328,0.72030572,138.31,138.25,7.23288091]
[1767972166530,0.72030572,138.31,138.24,7.2336464]
[1767972166732,20.42964566,138.32,138.23,0.86246729]
[1767972166733,12.40211298,138.3,138.23,0.72030572]
[1767972166910,0.72030572,138.29,138.26,11.68180726]
[1767972167318,38.50367689,138.32,138.24,11.68180726]
[1767972167319,0.72030572,138.27,138.24,11.68180726]
[1767972167520,0.72030572,138.27,138.25,11.68180726]
[1767972167724,0.72030572,138.29,138.26,11.68180726]
[1767972168008,13.92030572,138.28,138.21,0.72030572]
[1767972168219,0.72030572,138.27,138.21,0.72030572]
[1767972168424,0.72030572,138.27,138.23,11.68180726]
[1767972168831,0.72030572,138.27,138.24,11.68180726]
[1767972169025,0.72030572,138.27,138.19,0.72030572]
[1767972169225,0.72030572,138.27,138.24,11.68180726]
[1767972169410,0.72030572,138.27,138.2,0.69276623]
[1767972169411,13.2,138.26,138.22,7.23437277]
[1767972169610,13.2,138.26,138.24,11.68180726]
[1767972169814,13.2,138.25,138.24,11.68180726]
[1767972171640,13.2,138.25,138.21,7.92785886]
[1767972171934,0.67688168,138.29,138.24,11.68180726]
[1767972172137,13.2,138.28,138.27,11.68180726]
[1767972172326,13.2,138.28,138.24,7.23373716]
[1767972172327,0.67688168,138.31,138.24,7.23373716]
[1767972172526,13.2,138.28,138.27,11.00339745]
[1767972172932,13.2,138.28,138.26,11.68180726]
[1767972173742,11.68180726,138.31,138.24,7.92626726]
[1767972173952,13.2,138.3,138.26,0.69276623]
[1767972174317,13.2,138.3,138.27,11.68180726]
[1767972174534,13.2,138.3,138.26,0.69276623]
[1767972174851,13.2,138.3,138.27,11.68180726]
[1767972175142,13.2,138.3,138.26,0.69276623]
[1767972175326,13.2,138.3,138.27,11.68180726]
[1767972175531,13.2,138.3,138.26,0.69276623]
[1767972175839,13.2,138.3,138.27,11.68180726]
[1767972176421,20.4307787,138.3,138.26,11.68180726]
[1767972176617,20.4307787,138.3,138.24,0.69276623]
[1767972176618,32.16387043,138.3,138.24,12.37457349]
[1767972176929,32.16387043,138.3,138.25,11.68180726]
[1767972177815,32.11253972,138.3,138.24,0.69276623]
[1767972178030,18.91253972,138.3,138.25,11.68180726]
[1767972178239,13.2,138.29,138.25,11.68180726]
[1767972178432,13.2,138.29,138.24,0.69276623]
[1767972178838,13.2,138.29,138.21,0.69276623]
[1767972178839,11.73309173,138.27,138.21,0.69276623]
[1767972179042,13.25128447,138.29,138.24,11.68180726]
[1767972179222,11.73309173,138.29,138.24,11.68180726]
[1767972179418,13.2,138.28,138.22,0.69276623]
[1767972179727,32.11361493,138.28,138.24,11.68180726]
[1767972179926,11.68180726,138.27,138.22,0.69276623]
[1767972180127,11.68180726,138.27,138.22,12.37457349]
[1767972180541,11.68180726,138.27,138.22,0.69276623]
[1767972180754,11.68180726,138.25,138.2,12.37457349]
[1767972180920,13.2,138.24,138.23,11.68180726]
[1767972181245,7.23084563,138.3,138.24,0.69276623]
[1767972181544,13.2,138.29,138.24,0.69276623]
[1767972181841,11.73309173,138.26,138.19,0.69276623]
[1767972182040,11.73309173,138.26,138.18,18.09214439]
[1767972182041,11.68180726,138.26,138.21,11.68180726]
[1767972182244,11.68180726,138.25,138.18,0.69276623]
[1767972182542,24.88180726,138.25,138.2,0.69276623]
[1767972182742,0.05128447,138.3,138.21,0.72138119]
[1767972182919,11.68180726,138.28,138.22,0.72138119]
[1767972183122,0.05128447,138.3,138.23,11.68180726]
[1767972183433,11.68180726,138.29,138.24,11.68180726]
[1767972183634,6.6801107,138.34,138.27,11.68180726]
[1767972183635,18.96288159,138.32,138.27,11.68180726]
[1767972183839,20.43043302,138.31,138.24,0.72138119]
[1767972184042,20.48171749,138.31,138.24,0.72138119]
[1767972184236,32.16352475,138.31,138.26,11.68180726]
[1767972184438,36.14198572,138.35,138.21,1.00785978]
[1767972184439,0.05128447,138.35,138.3,11.68180726]
[1767972184648,11.83309173,138.37,138.32,11.68180726]
[1767972184954,11.83309173,138.37,138.29,0.72138119]
[1767972184955,0.05128447,138.36,138.29,0.72138119]
[1767972185155,20.52701109,138.37,138.33,11.68180726]
[1767972185370,13.3,138.37,138.33,11.68180726]
[1767972185661,20.52700123,138.37,138.33,11.68180726]
[1767972186334,0.1,138.37,138.34,11.68180726]
[1767972186659,13.3,138.37,138.34,11.68180726]
[1767972187063,0.1,138.37,138.31,0.72138119]
[1767972187263,0.1,138.37,138.35,11.68180726]
[1767972188662,36.12116634,138.43,138.35,11.68180726]
[1767972188663,24.88180726,138.45,138.37,0.72138119]
[1767972188876,12.74793118,138.46,138.42,11.68180726]
[1767972189059,12.74793118,138.46,138.39,0.72138119]
[1767972189060,44.85207344,138.46,138.39,0.72138119]
[1767972189260,11.68180726,138.44,138.39,11.68180726]
[1767972189462,33.17026618,138.46,138.35,25.29771389]
[1767972189463,11.68180726,138.45,138.4,11.68180726]
[1767972190079,33.17026618,138.46,138.34,0.72138119]
[1767972190080,18.90695822,138.41,138.34,0.72138119]
[1767972190368,7.22438872,138.43,138.35,0.72138119]
[1767972191769,7.22438872,138.43,138.37,12.40318845]
[1767972191968,13.2,138.42,138.37,0.72138119]
[1767972192176,11.68180726,138.41,138.37,12.40318845]
[1767972192369,13.2,138.42,138.37,12.40318845]
[1767972192667,32.10643564,138.42,138.37,11.68180726]
[1767972193566,32.10643564,138.42,138.34,0.72138119]
[1767972193567,20.42462838,138.42,138.34,0.72138119]
[1767972193778,11.68180726,138.4,138.35,11.68180726]
[1767972193945,7.22462838,138.42,138.37,11.68180726]
[1767972194144,13.2,138.42,138.38,11.68180726]
[1767972194951,24.88180726,138.42,138.36,0.72138119]
[1767972195142,24.88180726,138.42,138.37,0.72138119]
[1767972195340,11.68180726,138.42,138.37,0.72138119]
[1767972195545,11.68180726,138.4,138.35,0.72138119]
[1767972195767,11.68180726,138.39,138.35,12.40318845]
[1767972196144,11.68180726,138.36,138.32,11.68180726]
[1767972196341,11.68180726,138.36,138.31,12.40318845]
[1767972196342,24.88180726,138.36,138.31,12.40318845]
[1767972196548,13.2,138.36,138.28,0.72138119]
[1767972196764,11.68180726,138.35,138.28,0.72138119]
[1767972196970,11.68180726,138.34,138.29,11.68180726]
[1767972197153,13.2,138.33,138.3,11.68180726]
[1767972197352,13.2,138.33,138.29,12.40318845]
[1767972197565,13.2,138.33,138.29,0.72138119]
[1767972197752,13.2,138.33,138.29,12.40318845]
[1767972197972,13.2,138.33,138.3,11.68180726]
[1767972198268,7.22856748,138.34,138.3,11.68180726]
[1767972198474,32.11037474,138.34,138.29,0.72138119]
[1767972198851,11.68180726,138.33,138.28,0.72138119]
[1767972199173,13.2,138.32,138.29,12.40318845]
[1767972199374,13.2,138.32,138.29,0.72138119]
[1767972199574,13.2,138.32,138.28,11.68180726]
[1767972199874,18.91037474,138.34,138.29,0.72138119]
[1767972200076,13.2,138.33,138.3,11.68180726]
[1767972200252,7.22838632,138.35,138.31,11.68180726]
[1767972200452,13.2,138.34,138.31,12.40318845]
[1767972200647,18.90945918,138.36,138.31,0.72138119]
[1767972200869,13.2,138.35,138.31,12.40318845]
[1767972201068,13.2,138.35,138.31,0.72138119]
[1767972201377,13.2,138.35,138.31,12.40318845]
[1767972201670,24.88180726,138.35,138.31,12.40318845]
[1767972201875,24.88180726,138.35,138.31,0.72138119]
[1767972202050,13.2,138.35,138.31,0.72138119]
[1767972202251,18.06541566,138.39,138.32,12.40318845]
[1767972202489,18.90776289,138.39,138.34,11.68180726]
[1767972202655,13.2,138.38,138.34,12.40318845]
[1767972203546,24.88180726,138.38,138.34,0.72138119]
[1767972204274,32.10847314,138.38,138.34,0.72138119]
[1767972204456,13.2,138.38,138.34,0.72138119]
[1767972204658,24.88180726,138.38,138.34,0.72138119]
[1767972204853,32.10842722,138.38,138.34,0.72138119]
[1767972205050,32.10842722,138.38,138.3,7.23015494]
[1767972205051,11.68180726,138.36,138.32,12.40318845]
[1767972205578,11.68180726,138.36,138.31,11.68180726]
[1767972205875,13.2,138.36,138.33,12.40318845]
[1767972206074,13.2,138.37,138.34,11.68180726]
[1767972206272,13.2,138.37,138.33,11.68180726]
[1767972206577,13.2,138.37,138.33,7.17275028]
[1767972207483,13.2,138.37,138.34,0.72138119]
[1767972207858,13.2,138.38,138.35,0.72138119]
[1767972208165,13.2,138.38,138.35,7.89413147]
[1767972208366,13.2,138.38,138.35,0.72138119]
[1767972208882,18.05854251,138.44,138.37,0.72138119]
[1767972209083,7.17275028,138.41,138.37,0.72138119]
[1767972209255,7.17275028,138.4,138.35,7.89413147]
[1767972209483,13.2,138.4,138.36,0.72138119]
[1767972209775,20.37275028,138.4,138.36,0.72138119]
[1767972210160,7.17275028,138.38,138.34,0.72138119]
[1767972210361,13.2,138.37,138.34,0.72138119]
[1767972210578,7.22635197,138.39,138.34,0.72138119]
[1767972210891,13.2,138.38,138.35,7.17275028]
[1767972211613,13.2,138.38,138.29,0.72138119]
[1767972212077,7.17275028,138.36,138.31,7.17275028]
[1767972212271,68.10112991,138.39,138.31,7.89413147]
[1767972212464,14.40020513,138.37,138.31,0.72138119]
[1767972212781,13.2,138.37,138.34,7.17275028]
[1767972212957,13.2,138.37,138.33,0.72138119]
[1767972213159,13.2,138.37,138.34,7.17275028]
[1767972213359,13.2,138.37,138.33,0.72138119]
[1767972213661,13.2,138.37,138.33,7.89413147]
[1767972213979,7.22614787,138.39,138.35,7.17275028]
[1767972214164,13.2,138.38,138.35,7.82731727]
[1767972214482,13.2,138.38,138.35,0.65456699]
[1767972214663,20.42648396,138.38,138.35,0.65456699]
[1767972214861,13.2,138.38,138.35,0.65456699]
[1767972215258,13.2,138.38,138.3,0.65456699]
[1767972215454,7.17275028,138.35,138.3,0.65456699]
[1767972215673,7.17275028,138.36,138.31,7.17275028]
[1767972215886,13.2,138.35,138.32,7.17275028]
[1767972216181,25.97258831,138.4,138.34,7.82731727]
[1767972216383,13.2,138.39,138.34,0.65456699]
[1767972216579,7.22624805,138.39,138.34,0.65456699]
[1767972216780,13.2,138.38,138.35,7.17275028]
[1767972216965,13.2,138.38,138.34,0.65456699]
[1767972217170,13.2,138.38,138.34,7.82731727]
[1767972217378,13.2,138.38,138.34,0.65456699]
[1767972217683,13.2,138.38,138.34,7.82731727]
[1767972217883,7.17275028,138.37,138.32,0.65456699]
[1767972218084,7.31831794,138.37,138.31,7.17275028]
[1767972218282,13.2,138.36,138.31,0.65456699]
[1767972218475,13.2,138.36,138.33,7.17275028]
[1767972218878,13.2,138.37,138.33,7.82731727]
[1767972219082,13.2,138.37,138.34,7.82731727]
[1767972219271,7.22560967,138.4,138.35,7.82731727]
[1767972219469,13.2,138.39,138.35,7.82731727]
[1767972219975,13.2,138.39,138.35,0.65456699]
[1767972220762,20.42633357,138.39,138.35,0.65456699]
[1767972220966,20.42633357,138.39,138.35,7.82731727]
[1767972221873,20.42633357,138.39,138.35,0.65456699]
[1767972222184,20.42633357,138.39,138.35,7.82731727]
[1767972222492,13.43686751,138.46,138.39,0.65456699]
[1767972222670,20.42282412,138.45,138.4,7.82731727]
[1767972222870,20.55752715,138.45,138.4,7.17275028]
[1767972223476,20.55752715,138.45,138.41,7.82731727]
[1767972223477,13.2,138.45,138.41,7.82731727]
[1767972224097,13.2,138.45,138.39,0.65456699]
[1767972224269,21.05614428,138.45,138.39,0.65456699]
[1767972224670,7.17275028,138.43,138.38,7.17275028]
[1767972224879,7.22543352,138.4,138.36,7.17275028]
[1767972225089,13.2,138.4,138.37,7.17275028]
[1767972225284,13.2,138.4,138.36,7.17275028]
[1767972225491,13.2,138.4,138.35,0.65456699]
[1767972225676,20.37275028,138.4,138.35,7.82731727]
[1767972225871,20.51294022,138.4,138.35,7.82731727]
[1767972226084,20.51294022,138.4,138.34,7.17275028]
[1767972226085,7.17275028,138.39,138.34,7.17275028]
[1767972226284,13.34018994,138.4,138.34,7.17275028]
[1767972226485,13.87796195,138.39,138.35,7.17275028]
[1767972227009,21.10403673,138.39,138.35,7.17275028]
[1767972227208,0.14556766,138.38,138.33,7.17275028]
[1767972227513,7.31831794,138.38,138.33,7.17275028]
[1767972228078,45.66371414,138.39,138.34,7.17275028]
[1767972228287,45.77587383,138.39,138.34,7.17275028]
[1767972228494,7.87846218,138.38,138.33,7.17275028]
[1767972228879,0.69983574,138.36,138.33,7.17275028]
[1767972229078,13.89983574,138.36,138.33,7.17275028]
[1767972229293,13.2,138.36,138.33,7.17275028]
[1767972229493,20.42752265,138.36,138.32,7.82545942]
[1767972229710,7.22752265,138.36,138.32,7.82545942]
[1767972229920,7.22752265,138.36,138.32,0.65270914]
[1767972229921,13.2,138.35,138.32,0.65270914]
[1767972230429,13.2,138.35,138.32,7.82545942]
[1767972230728,13.2,138.35,138.28,7.23153057]
[1767972230729,7.88445766,138.39,138.33,0.65270914]
[1767972230887,18.06388861,138.4,138.29,7.23102597]
[1767972230888,0.71170738,138.4,138.36,7.17275028]
[1767972231207,0.71170738,138.44,138.39,7.17275028]
[1767972231406,13.88509568,138.44,138.37,0.0266117]
[1767972231708,0.68509568,138.44,138.42,7.17275028]
[1767972231903,0.68509568,138.44,138.42,7.10506034]
[1767972232808,0.68509568,138.44,138.37,0.0266117]
[1767972233006,0.68509568,138.44,138.42,7.17275028]
[1767972233187,33.17057352,138.46,138.42,7.17275028]
[1767972233389,0.71170738,138.45,138.42,7.17275028]
[1767972233896,25.94793118,138.46,138.42,7.17275028]
[1767972234096,25.94793118,138.46,138.41,0.0266117]
[1767972234404,33.17033811,138.46,138.42,7.17275028]
[1767972234806,0.71170738,138.45,138.42,7.17275028]
[1767972235502,0.71170738,138.45,138.4,7.2253724]
[1767972235816,0.71170738,138.45,138.43,7.17275028]
[1767972236000,25.94793118,138.46,138.43,7.17275028]
[1767972236330,33.17038547,138.46,138.42,7.17275028]
[1767972236493,33.88209285,138.46,138.42,7.17275028]
[1767972236917,0.71170738,138.45,138.39,0.0266117]
[1767972237099,7.93494753,138.45,138.41,7.17275028]
[1767972237310,7.93494753,138.45,138.37,7.25338499]
[1767972237612,0.71170738,138.44,138.4,7.17275028]
[1767972237795,0.71170738,138.44,138.41,7.17275028]
[1767972237993,12.74793118,138.46,138.42,7.17275028]
[1767972238200,13.45963856,138.46,138.42,7.17275028]
[1767972238598,27.85471304,138.46,138.41,7.17275028]
[1767972239023,0.71170738,138.45,138.39,0.0266117]
[1767972239328,7.93502432,138.45,138.41,7.17275028]
[1767972239821,7.93502432,138.45,138.42,7.17275028]
[1767972240111,7.93502432,138.45,138.41,7.17275028]
[1767972240313,0.71170738,138.45,138.43,7.17275028]
[1767972240516,7.93453577,138.45,138.39,7.25217142]
[1767972240698,7.93453577,138.45,138.42,7.17275028]
[1767972240699,0.71170738,138.45,138.42,7.17275028]
[1767972241014,0.71170738,138.45,138.43,7.17275028]
[1767972241214,104.5,138.52,138.37,18.78964488]
[1767972241215,0.81170738,138.51,138.44,14.39596209]
[1767972241392,0.1,138.51,138.5,6.44775028]
[1767972241588,0.1,138.51,138.49,7.17275028]
[1767972241802,0.1,138.51,138.45,0.65270914]
[1767972242209,8.0315063,138.51,138.48,7.17275028]
[1767972242713,8.0315063,138.51,138.49,7.17275028]
[1767972242714,0.81170738,138.51,138.49,7.17275028]
[1767972242916,0.1,138.51,138.47,0.66059585]
[1767972243115,0.1,138.51,138.5,7.17275028]
[1767972243743,0.1,138.51,138.47,0.66059585]
[1767972243927,0.1,138.51,138.49,7.17275028]
[1767972244726,0.1,138.51,138.48,7.17275028]
[1767972244927,0.1,138.51,138.49,7.17275028]
[1767972245440,0.1,138.51,138.48,7.17275028]
[1767972245816,0.1,138.51,138.49,7.17275028]
[1767972246015,0.1,138.51,138.5,7.17275028]
[1767972246240,0.71178126,138.56,138.5,7.79775028]
[1767972246537,8.46040988,138.59,138.55,7.17275028]
[1767972246726,8.46040988,138.59,138.5,7.17275028]
[1767972246727,1.24473686,138.59,138.56,7.17275028]
[1767972246923,0.5329556,138.59,138.58,7.17275028]
[1767972247234,18.03563779,138.62,138.5,7.17275028]